[Event "Tournoi fermé pour norme de MI de Créon 2025"]
[Site "CREON, France"]
[Date "2025.07.28"]
[Round "1.1"]
[White "Lamaze, Simon"]
[Black "Pichon, Ewen"]
[Result "0-1"]
[TimeControl "1h30/40 - 30' + [30'']"]
[WhiteElo "2458"]
[BlackElo "2311"]

1. e4 {[%clk 01:30:13]} {[%emt 00:00:46]} e6 {[%clk 01:30:48]} {[%emt
00:00:13]} 2. d4 {[%clk 01:30:30]} {[%emt 00:00:13]} d5 {[%clk 01:31:13]}
{[%emt 00:00:05]} 3. Nd2 {[%clk 01:30:49]} {[%emt 00:00:11]} c5 {[%clk
01:31:25]} {[%emt 00:00:18]} 4. exd5 {[%clk 01:31:00]} {[%emt 00:00:19]} exd5
{[%clk 01:31:51]} {[%emt 00:00:04]} 5. Ngf3 {[%clk 01:29:41]} {[%emt 00:01:49]}
Nc6 {[%clk 01:31:54]} {[%emt 00:00:28]} 6. Bb5 {[%clk 01:29:06]} {[%emt
00:01:05]} Qe7+ {[%clk 01:32:05]} {[%emt 00:00:19]} 7. Qe2 {[%clk 01:28:19]}
{[%emt 00:01:17]} Qxe2+ {[%clk 01:31:56]} {[%emt 00:00:39]} 8. Kxe2 {[%clk
01:28:29]} {[%emt 00:00:21]} Bd7 {[%clk 01:27:21]} {[%emt 00:05:05]} 9. Re1
{[%clk 01:21:16]} {[%emt 00:07:43]} O-O-O {[%clk 01:26:39]} {[%emt 00:01:12]}
10. dxc5 {[%clk 01:20:38]} {[%emt 00:01:08]} Bxc5 {[%clk 01:26:44]} {[%emt
00:00:24]} 11. Nb3 {[%clk 01:20:38]} {[%emt 00:00:30]} Bb6 {[%clk 01:26:31]}
{[%emt 00:00:43]} 12. Kf1 {[%clk 01:19:27]} {[%emt 00:01:40]} Nf6 {[%clk
01:24:39]} {[%emt 00:02:21]} 13. Bg5 {[%clk 01:16:17]} {[%emt 00:03:40]} h6
{[%clk 01:19:33]} {[%emt 00:05:37]} 14. Bxf6 {[%clk 01:13:25]} {[%emt
00:03:22]} gxf6 {[%clk 01:19:55]} {[%emt 00:00:08]} 15. c3 {[%clk 01:13:23]}
{[%emt 00:00:32]} Kc7 {[%clk 01:12:45]} {[%emt 00:07:40]} 16. h3 {[%clk
01:07:52]} {[%emt 00:06:01]} a6 {[%clk 01:09:00]} {[%emt 00:04:15]} 17. Bd3
{[%clk 01:01:26]} {[%emt 00:06:56]} Rhe8 {[%clk 01:07:55]} {[%emt 00:01:35]} 18.
Red1 {[%clk 00:56:41]} {[%emt 00:05:16]} Ne5 {[%clk 01:04:31]} {[%emt
00:03:54]} 19. Nbd4 {[%clk 00:54:54]} {[%emt 00:02:17]} Nxd3 {[%clk 01:03:01]}
{[%emt 00:01:59]} 20. Rxd3 {[%clk 00:55:15]} {[%emt 00:00:08]} Re4 {[%clk
01:01:33]} {[%emt 00:01:58]} 21. Rad1 {[%clk 00:47:19]} {[%emt 00:08:27]} Rde8
{[%clk 00:59:40]} {[%emt 00:02:23]} 22. R3d2 {[%clk 00:46:49]} {[%emt
00:01:00]} a5 {[%clk 00:59:20]} {[%emt 00:00:50]} 23. Kg1 {[%clk 00:45:32]}
{[%emt 00:01:46]} Kb8 {[%clk 00:57:25]} {[%emt 00:02:25]} 24. Nc2 {[%clk
00:42:43]} {[%emt 00:03:19]} Re2 {[%clk 00:39:09]} {[%emt 00:18:46]} 25. Nfd4
{[%clk 00:43:01]} {[%emt 00:00:13]} R2e5 {[%clk 00:39:25]} {[%emt 00:00:14]} 26.
Ne3 {[%clk 00:42:40]} {[%emt 00:00:51]} f5 {[%clk 00:38:48]} {[%emt 00:01:07]}
27. Nf3 {[%clk 00:34:37]} {[%emt 00:08:33]} Rxe3 {[%clk 00:38:13]} {[%emt
00:01:05]} 28. fxe3 {[%clk 00:33:11]} {[%emt 00:01:57]} Bxe3+ {[%clk 00:38:35]}
{[%emt 00:00:08]} 29. Kh1 {[%clk 00:33:33]} {[%emt 00:00:08]} Bxd2 {[%clk
00:38:51]} {[%emt 00:00:13]} 30. Rxd2 {[%clk 00:33:59]} {[%emt 00:00:04]} a4
{[%clk 00:27:02]} {[%emt 00:12:19]} 31. a3 {[%clk 00:33:51]} {[%emt 00:00:39]}
f4 {[%clk 00:25:52]} {[%emt 00:01:40]} 32. Kg1 {[%clk 00:28:57]} {[%emt
00:05:24]} Bc6 {[%clk 00:24:22]} {[%emt 00:02:00]} 33. Kf2 {[%clk 00:27:20]}
{[%emt 00:02:07]} Kc7 {[%clk 00:22:52]} {[%emt 00:02:00]} 34. Rd4 {[%clk
00:26:33]} {[%emt 00:01:17]} Bb5 {[%clk 00:22:00]} {[%emt 00:01:22]} 35. Ng1
{[%clk 00:27:01]} {[%emt 00:00:01]} f3 {[%clk 00:21:49]} {[%emt 00:00:42]} 36.
g3 {[%clk 00:22:27]} {[%emt 00:05:05]} Kc6 {[%clk 00:18:30]} {[%emt 00:03:49]}
37. Rf4 {[%clk 00:20:40]} {[%emt 00:02:17]} Re7 {[%clk 00:17:44]} {[%emt
00:01:16]} 38. Rf6+ {[%clk 00:18:02]} {[%emt 00:03:08]} Kc5 {[%clk 00:17:05]}
{[%emt 00:01:08]} 39. Rxh6 {[%clk 00:18:09]} {[%emt 00:00:22]} Bd3 {[%clk
00:14:21]} {[%emt 00:03:14]} 40. Rh4 {[%clk 00:08:24]} {[%emt 00:10:15]} Re4
{[%clk 00:12:26]} {[%emt 00:02:25]} 41. Rh6 {[%clk 00:00:49]} {[%emt 00:08:05]}
b5 {[%clk 00:12:00]} {[%emt 00:00:57]} 42. Nxf3 {[%clk 00:06:08]} {[%emt
00:25:10]} Re2+ {[%clk 00:41:51]} {[%emt 00:00:39]} 43. Kg1 {[%clk 00:06:33]}
{[%emt 00:00:05]} Rxb2 {[%clk 00:41:42]} {[%emt 00:00:40]} 44. Ne5 {[%clk
00:06:48]} {[%emt 00:00:14]} Bg6 {[%clk 00:41:32]} {[%emt 00:00:41]} 45. h4
{[%clk 00:06:37]} {[%emt 00:00:41]} d4 {[%clk 00:36:58]} {[%emt 00:05:04]} 46.
h5 {[%clk 00:04:49]} {[%emt 00:02:19]} Be4 {[%clk 00:35:58]} {[%emt 00:01:30]}
47. cxd4+ {[%clk 00:02:44]} {[%emt 00:02:35]} Kxd4 {[%clk 00:36:26]} {[%emt
00:00:01]} 48. Nc6+ {[%clk 00:03:10]} {[%emt 00:00:04]} Ke3 {[%clk 00:36:44]}
{[%emt 00:00:12]} 49. g4 {[%clk 00:03:25]} {[%emt 00:00:16]} Rg2+ {[%clk
00:36:55]} {[%emt 00:00:18]} 50. Kf1 {[%clk 00:03:33]} {[%emt 00:00:22]} Rc2
{[%clk 00:37:22]} {[%emt 00:00:03]} 0-1

[ePGN "0.1;DGT LiveChess/2.2.7"]

[Event "Tournoi fermé pour norme de MI de Créon 2025"]
[Site "CREON, France"]
[Date "2025.07.29"]
[Round "2.1"]
[White "Mohammad Nubairshah"]
[Black "Jerez Perez, Alfonso"]
[Result "1-0"]
[TimeControl "1h30/40 - 30' + [30'']"]
[WhiteElo "2378"]
[BlackElo "2328"]

1. c4 {[%clk 01:29:31]} {[%emt 00:01:29]} e5 {[%clk 01:29:39]} {[%emt
00:01:21]} 2. Nc3 {[%clk 01:29:56]} {[%emt 00:00:05]} Nc6 {[%clk 01:29:58]}
{[%emt 00:00:11]} 3. Nf3 {[%clk 01:30:10]} {[%emt 00:00:16]} Nf6 {[%clk
01:29:58]} {[%emt 00:00:30]} 4. a3 {[%clk 01:30:31]} {[%emt 00:00:10]} a5
{[%clk 01:27:18]} {[%emt 00:03:09]} 5. e3 {[%clk 01:30:05]} {[%emt 00:00:56]}
Be7 {[%clk 01:25:19]} {[%emt 00:02:29]} 6. Be2 {[%clk 01:25:42]} {[%emt
00:04:53]} O-O {[%clk 01:24:04]} {[%emt 00:01:44]} 7. O-O {[%clk 01:26:06]}
{[%emt 00:00:06]} Re8 {[%clk 01:22:19]} {[%emt 00:02:16]} 8. Qc2 {[%clk
01:25:26]} {[%emt 00:01:10]} Bf8 {[%clk 01:15:07]} {[%emt 00:07:42]} 9. d4
{[%clk 01:12:01]} {[%emt 00:13:55]} d6 {[%clk 01:09:36]} {[%emt 00:06:00]} 10.
dxe5 {[%clk 01:06:03]} {[%emt 00:06:28]} Nxe5 {[%clk 01:06:11]} {[%emt
00:03:55]} 11. Nxe5 {[%clk 00:57:43]} {[%emt 00:08:50]} dxe5 {[%clk 01:02:05]}
{[%emt 00:04:36]} 12. Rd1 {[%clk 00:58:10]} {[%emt 00:00:03]} Qe7 {[%clk
01:02:26]} {[%emt 00:00:08]} 13. e4 {[%clk 00:57:33]} {[%emt 00:01:07]} c6
{[%clk 01:02:05]} {[%emt 00:00:51]} 14. Na4 {[%clk 00:51:38]} {[%emt 00:06:26]}
Nd7 {[%clk 00:44:55]} {[%emt 00:17:39]} 15. Be3 {[%clk 00:51:44]} {[%emt
00:00:24]} g6 {[%clk 00:41:49]} {[%emt 00:03:36]} 16. Rd2 {[%clk 00:43:04]}
{[%emt 00:09:10]} Bg7 {[%clk 00:38:24]} {[%emt 00:03:56]} 17. Rad1 {[%clk
00:34:29]} {[%emt 00:09:05]} Nf8 {[%clk 00:36:49]} {[%emt 00:02:05]} 18. Nb6
{[%clk 00:32:12]} {[%emt 00:02:47]} Ra6 {[%clk 00:33:43]} {[%emt 00:03:36]} 19.
c5 {[%clk 00:29:11]} {[%emt 00:03:30]} Ra7 {[%clk 00:32:54]} {[%emt 00:01:19]}
20. Bc4 {[%clk 00:27:23]} {[%emt 00:02:18]} Bf6 {[%clk 00:25:39]} {[%emt
00:07:45]} 21. Rd6 {[%clk 00:16:45]} {[%emt 00:11:07]} Bg5 {[%clk 00:20:10]}
{[%emt 00:05:59]} 22. Nxc8 {[%clk 00:13:47]} {[%emt 00:03:29]} Rxc8 {[%clk
00:20:27]} {[%emt 00:00:13]} 23. Bxg5 {[%clk 00:14:15]} {[%emt 00:00:02]} Qxg5
{[%clk 00:20:24]} {[%emt 00:00:32]} 24. Qb3 {[%clk 00:14:43]} {[%emt 00:00:02]}
Qe7 {[%clk 00:19:41]} {[%emt 00:01:13]} 25. R1d3 {[%clk 00:15:01]} {[%emt
00:00:13]} a4 {[%clk 00:14:02]} {[%emt 00:06:10]} 26. Qb6 {[%clk 00:13:53]}
{[%emt 00:01:38]} Raa8 {[%clk 00:14:25]} {[%emt 00:00:06]} 27. Rf3 {[%clk
00:14:18]} {[%emt 00:00:04]} Ne6 {[%clk 00:14:49]} {[%emt 00:00:06]} 28. Rxf7
{[%clk 00:09:31]} {[%emt 00:05:17]} Kxf7 {[%clk 00:15:11]} {[%emt 00:00:08]} 29.
Rxe6 {[%clk 00:09:25]} {[%emt 00:00:37]} Qxe6 {[%clk 00:15:35]} {[%emt
00:00:06]} 30. Qxb7+ {[%clk 00:09:51]} {[%emt 00:00:03]} Kf6 {[%clk 00:16:02]}
{[%emt 00:00:03]} 31. Bxe6 {[%clk 00:10:16]} {[%emt 00:00:06]} Kxe6 {[%clk
00:16:26]} {[%emt 00:00:05]} 32. Qxh7 {[%clk 00:10:40]} {[%emt 00:00:06]} Kf6
{[%clk 00:16:54]} {[%emt 00:00:02]} 33. Qd7 {[%clk 00:08:11]} {[%emt 00:02:59]}
1-0

[Event "Tournoi fermé pour norme de MI de Créon 2025"]
[Site "CREON, France"]
[Date "2025.07.29"]
[Round "2.5"]
[White "Malka, Samuel"]
[Black "Villegas, Pierre"]
[Result "0-1"]
[TimeControl "1h30/40 - 30' + [30'']"]
[WhiteElo "2268"]
[BlackElo "2291"]

1. e4 {[%clk 01:28:44]} {[%emt 00:02:15]} c6 {[%clk 01:30:44]} {[%emt
00:00:17]} 2. d4 {[%clk 01:29:10]} {[%emt 00:00:04]} d5 {[%clk 01:31:08]}
{[%emt 00:00:07]} 3. e5 {[%clk 01:29:36]} {[%emt 00:00:05]} Bf5 {[%clk
01:30:39]} {[%emt 00:00:57]} 4. h4 {[%clk 01:29:48]} {[%emt 00:00:17]} h5
{[%clk 01:30:43]} {[%emt 00:00:27]} 5. Bd3 {[%clk 01:30:09]} {[%emt 00:00:09]}
Qd7 {[%clk 01:29:13]} {[%emt 00:02:01]} 6. Nf3 {[%clk 01:26:32]} {[%emt
00:04:06]} Bg4 {[%clk 01:29:14]} {[%emt 00:00:30]} 7. Nbd2 {[%clk 01:18:35]}
{[%emt 00:08:27]} e6 {[%clk 01:26:37]} {[%emt 00:03:08]} 8. Nb3 {[%clk
01:13:37]} {[%emt 00:05:27]} Qc7 {[%clk 01:20:58]} {[%emt 00:06:09]} 9. Be2
{[%clk 01:12:45]} {[%emt 00:01:22]} Nd7 {[%clk 01:14:26]} {[%emt 00:07:02]} 10.
Ng5 {[%clk 01:10:01]} {[%emt 00:03:13]} Nh6 {[%clk 00:57:34]} {[%emt 00:17:22]}
11. f3 {[%clk 01:04:55]} {[%emt 00:05:35]} Bf5 {[%clk 00:56:24]} {[%emt
00:01:42]} 12. g4 {[%clk 01:04:03]} {[%emt 00:01:21]} Bg6 {[%clk 00:56:34]}
{[%emt 00:00:20]} 13. Be3 {[%clk 00:56:16]} {[%emt 00:08:16]} O-O-O {[%clk
00:52:20]} {[%emt 00:04:45]} 14. Nh3 {[%clk 00:45:56]} {[%emt 00:10:48]} hxg4
{[%clk 00:36:34]} {[%emt 00:16:18]} 15. fxg4 {[%clk 00:46:01]} {[%emt
00:00:24]} Be4 {[%clk 00:35:51]} {[%emt 00:01:14]} 16. Bf3 {[%clk 00:38:00]}
{[%emt 00:08:29]} Nxe5 {[%clk 00:31:27]} {[%emt 00:04:56]} 17. dxe5 {[%clk
00:34:56]} {[%emt 00:03:34]} Qxe5 {[%clk 00:31:36]} {[%emt 00:00:21]} 18. Kf2
{[%clk 00:33:47]} {[%emt 00:01:37]} f5 {[%clk 00:25:59]} {[%emt 00:06:09]} 19.
gxf5 {[%clk 00:09:47]} {[%emt 00:24:29]} Be7 {[%clk 00:18:57]} {[%emt
00:07:33]} 20. Bf4 {[%clk 00:08:07]} {[%emt 00:02:11]} Bxh4+ {[%clk 00:19:04]}
{[%emt 00:00:22]} 21. Kg2 {[%clk 00:08:22]} {[%emt 00:00:15]} Qxf5 {[%clk
00:19:18]} {[%emt 00:00:17]} 22. Bxe4 {[%clk 00:07:56]} {[%emt 00:00:55]} dxe4
{[%clk 00:16:48]} {[%emt 00:03:00]} 23. Qe2 {[%clk 00:07:01]} {[%emt 00:01:25]}
e5 {[%clk 00:14:26]} {[%emt 00:02:52]} 24. Bxh6 {[%clk 00:01:48]} {[%emt
00:05:43]} Rxh6 {[%clk 00:14:44]} {[%emt 00:00:13]} 25. Rh2 {[%clk 00:00:47]}
{[%emt 00:01:31]} Bg3 {[%clk 00:12:52]} {[%emt 00:02:21]} 26. Rf1 {[%clk
00:01:06]} {[%emt 00:00:11]} Qg6 {[%clk 00:13:18]} {[%emt 00:00:04]} 27. Rg1
{[%clk 00:00:37]} {[%emt 00:00:59]} Bxh2+ {[%clk 00:13:43]} {[%emt 00:00:06]}
28. Kxh2 {[%clk 00:01:06]} {[%emt 00:00:01]} Rxh3+ {[%clk 00:14:00]} {[%emt
00:00:14]} 0-1

[Event "Tournoi fermé pour norme de MI de Créon 2025"]
[Site "CREON, France"]
[Date "2025.07.29"]
[Round "2.2"]
[White "Llari, Marc"]
[Black "Kocharin, Timur"]
[Result "0-1"]
[TimeControl "1h30/40 - 30' + [30'']"]
[WhiteElo "2341"]
[BlackElo "2302"]

1. e4 {[%clk 01:31:00]} {[%emt 00:03:16]} c5 {[%clk 01:30:14]} {[%emt
00:00:46]} 2. Nf3 {[%clk 01:31:27]} {[%emt 00:00:03]} e6 {[%clk 01:30:30]}
{[%emt 00:00:13]} 3. d4 {[%clk 01:31:52]} {[%emt 00:00:04]} cxd4 {[%clk
01:30:55]} {[%emt 00:00:06]} 4. Nxd4 {[%clk 01:32:19]} {[%emt 00:00:03]} Nf6
{[%clk 01:31:15]} {[%emt 00:00:10]} 5. Nc3 {[%clk 01:32:45]} {[%emt 00:00:03]}
Nc6 {[%clk 01:31:39]} {[%emt 00:00:06]} 6. a3 {[%clk 01:33:10]} {[%emt
00:00:05]} Be7 {[%clk 01:31:44]} {[%emt 00:00:25]} 7. Nxc6 {[%clk 01:32:48]}
{[%emt 00:00:53]} bxc6 {[%clk 01:32:07]} {[%emt 00:00:07]} 8. e5 {[%clk
01:33:12]} {[%emt 00:00:06]} Nd5 {[%clk 01:32:31]} {[%emt 00:00:04]} 9. Qg4
{[%clk 01:33:36]} {[%emt 00:00:06]} g6 {[%clk 01:32:04]} {[%emt 00:00:58]} 10.
h4 {[%clk 01:30:14]} {[%emt 00:03:52]} Nxc3 {[%clk 01:22:35]} {[%emt 00:09:59]}
11. bxc3 {[%clk 01:30:35]} {[%emt 00:00:09]} Qa5 {[%clk 01:20:54]} {[%emt
00:02:12]} 12. Qg3 {[%clk 01:30:41]} {[%emt 00:00:23]} h5 {[%clk 01:18:12]}
{[%emt 00:03:12]} 13. Bd2 {[%clk 01:21:39]} {[%emt 00:09:32]} Ba6 {[%clk
01:14:23]} {[%emt 00:04:19]} 14. c4 {[%clk 01:21:26]} {[%emt 00:00:43]} Qc7
{[%clk 01:09:02]} {[%emt 00:05:51]} 15. Bd3 {[%clk 01:20:50]} {[%emt 00:01:06]}
c5 {[%clk 01:04:53]} {[%emt 00:04:40]} 16. Rd1 {[%clk 01:16:27]} {[%emt
00:04:52]} Bb7 {[%clk 01:00:51]} {[%emt 00:04:33]} 17. Bg5 {[%clk 01:14:04]}
{[%emt 00:02:53]} Bxg5 {[%clk 01:00:30]} {[%emt 00:00:51]} 18. Qxg5 {[%clk
01:13:04]} {[%emt 00:01:30]} Qd8 {[%clk 00:59:02]} {[%emt 00:01:59]} 19. Qf4
{[%clk 01:05:54]} {[%emt 00:07:38]} Qa5+ {[%clk 00:46:00]} {[%emt 00:13:33]} 20.
Kf1 {[%clk 01:05:42]} {[%emt 00:00:41]} Qxa3 {[%clk 00:43:59]} {[%emt
00:02:32]} 21. Rh3 {[%clk 01:00:23]} {[%emt 00:05:48]} Qa5 {[%clk 00:40:27]}
{[%emt 00:04:02]} 22. Rg3 {[%clk 00:54:49]} {[%emt 00:06:04]} Rg8 {[%clk
00:36:50]} {[%emt 00:04:07]} 23. Qh6 {[%clk 00:53:52]} {[%emt 00:01:27]} Qc7
{[%clk 00:34:21]} {[%emt 00:03:00]} 24. Bxg6 {[%clk 00:51:55]} {[%emt
00:02:27]} fxg6 {[%clk 00:34:04]} {[%emt 00:00:47]} 25. Qg5 {[%clk 00:47:23]}
{[%emt 00:05:02]} Qd8 {[%clk 00:32:54]} {[%emt 00:01:42]} 26. Qe3 {[%clk
00:47:12]} {[%emt 00:00:40]} Qxh4 {[%clk 00:30:58]} {[%emt 00:02:25]} 27. Qxc5
{[%clk 00:47:25]} {[%emt 00:00:17]} Rc8 {[%clk 00:31:05]} {[%emt 00:00:24]} 28.
Qxa7 {[%clk 00:47:13]} {[%emt 00:00:42]} Qxc4+ {[%clk 00:30:47]} {[%emt
00:00:48]} 29. Kg1 {[%clk 00:47:12]} {[%emt 00:00:31]} Qxc2 {[%clk 00:29:36]}
{[%emt 00:01:42]} 30. Rgd3 {[%clk 00:46:34]} {[%emt 00:01:05]} Bd5 {[%clk
00:29:46]} {[%emt 00:00:22]} 31. Qe3 {[%clk 00:45:43]} {[%emt 00:01:21]} Rc3
{[%clk 00:27:55]} {[%emt 00:02:21]} 32. Rxc3 {[%clk 00:42:47]} {[%emt
00:03:25]} Qxd1+ {[%clk 00:28:18]} {[%emt 00:00:07]} 33. Kh2 {[%clk 00:43:09]}
{[%emt 00:00:08]} Qg4 {[%clk 00:27:57]} {[%emt 00:00:51]} 34. f3 {[%clk
00:42:27]} {[%emt 00:01:13]} Qh4+ {[%clk 00:28:18]} {[%emt 00:00:09]} 35. Kg1
{[%clk 00:42:51]} {[%emt 00:00:06]} Kf7 {[%clk 00:28:10]} {[%emt 00:00:38]} 36.
Rc7 {[%clk 00:42:32]} {[%emt 00:00:49]} Bc6 {[%clk 00:28:23]} {[%emt 00:00:18]}
37. Rxc6 {[%clk 00:38:22]} {[%emt 00:04:40]} dxc6 {[%clk 00:28:13]} {[%emt
00:00:40]} 38. Qa7+ {[%clk 00:38:48]} {[%emt 00:00:04]} Qe7 {[%clk 00:28:36]}
{[%emt 00:00:06]} 0-1

[Event "Tournoi fermé pour norme de MI de Créon 2025"]
[Site "CREON, France"]
[Date "2025.07.29"]
[Round "2.4"]
[White "Le Hetet, Nicolas"]
[Black "Lamaze, Simon"]
[Result "0-1"]
[TimeControl "1h30/40 - 30' + [30'']"]
[WhiteElo "2288"]
[BlackElo "2458"]

1. e4 {[%clk 01:30:56]} {[%emt 00:00:03]} c5 {[%clk 01:30:53]} {[%emt
00:00:09]} 2. Nc3 {[%clk 01:31:13]} {[%emt 00:00:11]} Nc6 {[%clk 01:31:13]}
{[%emt 00:00:11]} 3. Bb5 {[%clk 01:31:31]} {[%emt 00:00:12]} Nd4 {[%clk
01:31:10]} {[%emt 00:00:34]} 4. Nf3 {[%clk 01:31:17]} {[%emt 00:00:45]} a6
{[%clk 01:31:31]} {[%emt 00:00:08]} 5. Bd3 {[%clk 01:31:28]} {[%emt 00:00:19]}
e6 {[%clk 01:30:46]} {[%emt 00:01:15]} 6. O-O {[%clk 01:30:49]} {[%emt
00:01:08]} Nc6 {[%clk 01:31:10]} {[%emt 00:00:09]} 7. Nd5 {[%clk 01:27:50]}
{[%emt 00:03:27]} d6 {[%clk 01:28:35]} {[%emt 00:03:05]} 8. Ne3 {[%clk
01:27:58]} {[%emt 00:00:21]} Nf6 {[%clk 01:15:24]} {[%emt 00:13:41]} 9. c3
{[%clk 01:26:48]} {[%emt 00:01:40]} b6 {[%clk 01:10:53]} {[%emt 00:05:02]} 10.
Bc2 {[%clk 01:21:00]} {[%emt 00:06:17]} Bb7 {[%clk 01:10:31]} {[%emt 00:00:53]}
11. a3 {[%clk 01:17:27]} {[%emt 00:04:03]} Ne7 {[%clk 01:09:25]} {[%emt
00:01:35]} 12. d3 {[%clk 01:12:28]} {[%emt 00:05:29]} g6 {[%clk 01:09:35]}
{[%emt 00:00:20]} 13. Re1 {[%clk 01:10:40]} {[%emt 00:02:18]} Bg7 {[%clk
01:09:57]} {[%emt 00:00:09]} 14. Nf1 {[%clk 01:09:11]} {[%emt 00:01:59]} e5
{[%clk 01:04:18]} {[%emt 00:06:10]} 15. d4 {[%clk 01:03:30]} {[%emt 00:06:11]}
Qc7 {[%clk 01:04:40]} {[%emt 00:00:09]} 16. d5 {[%clk 00:56:35]} {[%emt
00:07:25]} c4 {[%clk 01:03:27]} {[%emt 00:01:43]} 17. h3 {[%clk 00:50:33]}
{[%emt 00:06:30]} Nd7 {[%clk 01:02:19]} {[%emt 00:01:39]} 18. Ne3 {[%clk
00:49:18]} {[%emt 00:01:45]} b5 {[%clk 01:02:20]} {[%emt 00:00:29]} 19. a4
{[%clk 00:47:20]} {[%emt 00:02:28]} O-O {[%clk 01:01:14]} {[%emt 00:01:36]} 20.
Ng4 {[%clk 00:40:15]} {[%emt 00:07:35]} Kh8 {[%clk 00:58:21]} {[%emt 00:03:24]}
21. axb5 {[%clk 00:37:44]} {[%emt 00:03:01]} axb5 {[%clk 00:58:01]} {[%emt
00:00:49]} 22. Rxa8 {[%clk 00:38:12]} {[%emt 00:00:02]} Bxa8 {[%clk 00:56:37]}
{[%emt 00:01:55]} 23. Bh6 {[%clk 00:36:14]} {[%emt 00:02:28]} Ng8 {[%clk
00:55:09]} {[%emt 00:01:58]} 24. Bxg7+ {[%clk 00:34:45]} {[%emt 00:01:58]} Kxg7
{[%clk 00:55:30]} {[%emt 00:00:09]} 25. Qd2 {[%clk 00:35:08]} {[%emt 00:00:08]}
Bb7 {[%clk 00:55:44]} {[%emt 00:00:17]} 26. Ra1 {[%clk 00:32:36]} {[%emt
00:03:01]} Nc5 {[%clk 00:54:52]} {[%emt 00:01:22]} 27. Ne3 {[%clk 00:29:16]}
{[%emt 00:03:50]} Ra8 {[%clk 00:49:02]} {[%emt 00:06:20]} 28. Rxa8 {[%clk
00:28:59]} {[%emt 00:00:48]} Bxa8 {[%clk 00:49:27]} {[%emt 00:00:05]} 29. g4
{[%clk 00:27:40]} {[%emt 00:01:47]} Bb7 {[%clk 00:46:50]} {[%emt 00:03:08]} 30.
g5 {[%clk 00:24:36]} {[%emt 00:03:34]} Bc8 {[%clk 00:47:11]} {[%emt 00:00:09]}
31. Kg2 {[%clk 00:24:23]} {[%emt 00:00:43]} f6 {[%clk 00:45:36]} {[%emt
00:02:05]} 32. Nf1 {[%clk 00:19:14]} {[%emt 00:05:39]} Qd7 {[%clk 00:43:16]}
{[%emt 00:02:50]} 33. Ng1 {[%clk 00:19:36]} {[%emt 00:00:07]} Qe7 {[%clk
00:39:05]} {[%emt 00:04:41]} 34. h4 {[%clk 00:18:00]} {[%emt 00:02:06]} h6
{[%clk 00:37:53]} {[%emt 00:01:42]} 35. gxh6+ {[%clk 00:16:12]} {[%emt
00:02:18]} Nxh6 {[%clk 00:37:26]} {[%emt 00:00:56]} 36. Ng3 {[%clk 00:16:33]}
{[%emt 00:00:09]} Qd7 {[%clk 00:35:14]} {[%emt 00:02:43]} 37. h5 {[%clk
00:14:04]} {[%emt 00:02:58]} g5 {[%clk 00:34:50]} {[%emt 00:00:55]} 38. f3
{[%clk 00:09:17]} {[%emt 00:05:17]} Qa7 {[%clk 00:33:29]} {[%emt 00:01:51]} 39.
Qc1 {[%clk 00:08:51]} {[%emt 00:00:56]} Kh7 {[%clk 00:29:15]} {[%emt 00:04:43]}
40. Nf1 {[%clk 00:07:05]} {[%emt 00:02:16]} Bd7 {[%clk 00:25:45]} {[%emt
00:04:01]} 41. Ne2 {[%clk 00:02:10]} {[%emt 00:05:24]} Bc8 {[%clk 00:22:53]}
{[%emt 00:03:23]} 42. Ne3 {[%clk 00:01:43]} {[%emt 00:00:56]} g4 {[%clk
00:14:27]} {[%emt 00:08:56]} 43. Ng3 {[%clk 00:25:23]} {[%emt 00:06:50]} gxf3+
{[%clk 00:43:34]} {[%emt 00:01:24]} 44. Kxf3 {[%clk 00:25:34]} {[%emt
00:00:18]} Qg7 {[%clk 00:43:10]} {[%emt 00:00:54]} 45. Ng2 {[%clk 00:19:20]}
{[%emt 00:06:44]} Qg4+ {[%clk 00:42:35]} {[%emt 00:01:05]} 46. Kf2 {[%clk
00:19:49]} {[%emt 00:00:01]} Nf7 {[%clk 00:41:36]} {[%emt 00:01:30]} 47. Qe3
{[%clk 00:18:40]} {[%emt 00:01:38]} Ng5 {[%clk 00:41:16]} {[%emt 00:00:50]} 48.
Kg1 {[%clk 00:18:19]} {[%emt 00:00:51]} Kg7 {[%clk 00:40:52]} {[%emt 00:00:54]}
49. Kf2 {[%clk 00:17:55]} {[%emt 00:00:54]} Bd7 {[%clk 00:40:45]} {[%emt
00:00:38]} 50. Kg1 {[%clk 00:13:50]} {[%emt 00:04:35]} Kh7 {[%clk 00:38:30]}
{[%emt 00:02:44]} 51. Kf2 {[%clk 00:14:12]} {[%emt 00:00:07]} Qh3 {[%clk
00:37:51]} {[%emt 00:01:09]} 52. Kg1 {[%clk 00:11:36]} {[%emt 00:03:07]} Bg4
{[%clk 00:36:53]} {[%emt 00:01:29]} 53. Nf5 {[%clk 00:09:55]} {[%emt 00:02:10]}
Bxf5 {[%clk 00:36:43]} {[%emt 00:00:40]} 54. exf5 {[%clk 00:10:20]} {[%emt
00:00:05]} Qxh5 {[%clk 00:36:59]} {[%emt 00:00:14]} 55. Qg3 {[%clk 00:07:45]}
{[%emt 00:03:05]} Nce4 {[%clk 00:34:29]} {[%emt 00:03:00]} 56. Qe3 {[%clk
00:04:16]} {[%emt 00:03:59]} Nf3+ {[%clk 00:34:14]} {[%emt 00:00:45]} 0-1